bitfinex-derivatives/quotes_ETHF0:USTF0_20250917
["timestamp","ask_amount","ask_price","bid_price","bid_amount"]
[1758149332666,0.035,4585.0,4584.8,0.7898]
[1758149332870,0.035,4585.0,4584.9,0.7898]
[1758149333167,0.4893,4585.0,4584.9,0.7898]
[1758149333376,0.7105,4585.0,4584.9,0.7898]
[1758149334176,0.4893,4585.0,4584.9,0.7898]
[1758149334385,0.035,4585.0,4584.9,0.7898]
[1758149334577,0.259,4585.0,4584.9,0.7898]
[1758149334779,0.4893,4585.0,4584.9,0.7898]
[1758149334980,1.0385,4585.0,4584.9,0.7898]
[1758149335180,0.259,4585.0,4584.9,0.7898]
[1758149335480,0.4893,4585.0,4584.9,0.7898]
[1758149336476,0.2653,4585.0,4584.9,0.7898]
[1758149336683,0.4903,4585.0,4584.9,0.7898]
[1758149337071,0.2653,4585.0,4584.9,0.7898]
[1758149337272,0.26,4585.0,4584.9,0.7898]
[1758149338380,0.035,4585.0,4584.9,0.7898]
[1758149338686,3.6577,4586.1,4586.0,0.8776]
[1758149338873,4.37801281,4586.1,4586.0,0.8776]
[1758149339081,4.48691281,4586.1,4586.0,0.8776]
[1758149339384,4.37801281,4586.1,4586.0,0.8776]
[1758149339887,4.71191281,4586.1,4586.0,0.8776]
[1758149340087,4.48691281,4586.1,4586.0,0.8776]
[1758149340279,4.71091281,4586.1,4586.0,0.8776]
[1758149340782,4.71091281,4586.1,4586.0,0.5215]
[1758149341183,4.90788816,4586.1,4586.0,0.5215]
[1758149341479,4.48691281,4586.1,4586.0,0.5215]
[1758149341686,4.71091281,4586.1,4586.0,0.5215]
[1758149342086,4.71091281,4586.1,4585.8,0.0218]
[1758149342087,0.4499,4585.9,4585.8,0.3331]
[1758149342281,1.27911281,4585.9,4585.8,0.3331]
[1758149342489,1.27911281,4585.9,4585.8,0.0218]
[1758149343487,1.27911281,4585.9,4585.8,0.5433]
[1758149344283,1.27911281,4585.9,4585.8,0.0218]
[1758149346687,1.27911281,4585.9,4585.8,0.3569]
[1758149347280,1.27911281,4585.9,4585.8,0.5703]
[1758149347480,1.16921281,4585.9,4585.8,0.7903]
[1758149347888,1.50611281,4585.9,4585.8,0.7903]
[1758149348680,1.16921281,4585.9,4585.8,0.7903]
[1758149349385,1.50642398,4585.9,4585.8,0.7903]
[1758149350491,0.94552398,4585.9,4585.8,0.7903]
[1758149350692,1.16952398,4585.9,4585.8,0.7903]
[1758149351587,0.94552398,4585.9,4585.8,0.7903]
[1758149351788,0.94742398,4585.9,4585.8,0.7903]
[1758149352294,0.49562398,4585.9,4585.8,4.7903]
[1758149352488,0.224,4585.9,4585.8,4.7903]
[1758149352688,0.72780345,4586.2,4585.8,4.7903]
[1758149352888,0.224,4586.1,4586.0,0.5621]
[1758149353290,0.72780345,4586.2,4586.0,0.5621]
[1758149353492,0.72780345,4586.2,4586.1,0.7685]
[1758149353693,0.95180345,4586.2,4586.1,0.7685]
[1758149355094,1.16820345,4586.2,4586.1,0.7685]
[1758149355397,0.95180345,4586.2,4586.1,0.7685]
[1758149355888,1.16820345,4586.2,4586.1,0.7685]
[1758149356290,1.39500345,4586.2,4586.1,0.7685]
[1758149356592,0.7801,4586.0,4585.8,0.0218]
[1758149356792,0.7801,4585.9,4585.8,0.5703]
[1758149356984,0.7801,4585.9,4585.8,0.7903]
[1758149357592,3.93560345,4586.2,4585.8,0.7903]
[1758149357791,0.224,4586.1,4586.0,0.8972]
[1758149358098,0.4404,4586.1,4586.0,0.8972]
[1758149359094,0.72780345,4586.2,4586.0,0.8972]
[1758149359300,0.72780345,4586.2,4586.1,0.7685]
[1758149359799,0.95180345,4586.2,4586.1,0.7685]
[1758149360095,1.73190345,4586.2,4585.8,0.0218]
[1758149360301,0.7801,4586.0,4585.9,0.5485]
[1758149360499,0.4432,4586.0,4585.9,0.7685]
[1758149360896,0.2164,4586.0,4585.9,0.7685]
[1758149361199,0.4404,4586.0,4585.9,0.7685]
[1758149361500,0.72780345,4586.2,4586.1,0.7685]
[1758149361701,0.95180345,4586.2,4586.1,0.7685]
[1758149362602,1.22439599,4586.2,4586.1,0.7685]
[1758149362796,0.72780345,4586.2,4586.1,1.16078]
[1758149362997,0.7801,4587.2,4587.1,0.5485]
[1758149363203,1.69816962,4587.2,4586.6,0.3351]
[1758149363402,0.4432,4586.7,4586.6,0.7685]
[1758149363601,1.27661822,4586.7,4586.6,0.7685]
[1758149363900,1.16371822,4586.7,4586.6,0.7685]
[1758149364403,0.6672,4586.7,4586.6,0.7685]
[1758149364702,0.4432,4586.7,4586.6,0.7685]
[1758149364904,0.6672,4586.7,4586.6,0.7685]
[1758149365899,0.2164,4586.7,4586.6,0.7685]
[1758149366093,0.3369,4587.0,4586.7,0.3351]
[1758149366292,0.2164,4586.8,4586.7,0.7685]
[1758149366498,0.93659451,4586.8,4586.7,0.7685]
[1758149368406,0.4404,4586.8,4586.7,0.7685]
[1758149368597,0.2164,4586.8,4586.7,0.7685]
[1758149369000,0.4404,4586.8,4586.7,0.7685]
[1758149370104,0.2164,4586.8,4586.7,0.7685]
[1758149371408,0.7801,4586.8,4586.7,0.7685]
[1758149372108,0.4432,4586.8,4586.7,0.7685]
[1758149373606,0.7801,4586.8,4586.7,0.7685]
[1758149374195,0.224,4586.9,4586.7,0.7685]
[1758149374401,0.224,4586.9,4586.8,0.7685]
[1758149374900,0.4404,4586.9,4586.8,0.7685]
[1758149375505,0.2164,4586.9,4586.8,0.7685]
[1758149375995,0.4432,4586.9,4586.8,0.7685]
[1758149376201,0.7684,4586.9,4586.8,0.5485]
[1758149378200,0.4432,4586.9,4586.5,0.3031]
[1758149378405,0.7605,4586.7,4586.6,0.524]
[1758149378605,0.7605,4586.7,4586.6,0.7443]
[1758149382311,0.7605,4586.7,4586.6,0.524]
[1758149382710,0.9320605,4586.7,4586.5,0.1744]
[1758149382909,1.2572605,4586.6,4586.5,0.4879]
[1758149383508,1.2572605,4586.6,4586.5,0.6984]
[1758149384310,1.4812605,4586.6,4586.5,0.1744]
[1758149384707,0.1168,4586.5,4585.6,0.3135]
[1758149384912,0.3252,4585.6,4585.3,3.2078]
[1758149385112,0.4353,4585.4,4585.3,3.6386]
[1758149385516,0.4353,4585.4,4585.3,3.9521]
[1758149386311,0.224,4585.6,4585.5,0.1272]
[1758149386612,0.6593,4585.6,4585.5,0.8715]
[1758149387115,0.9845,4585.6,4585.5,0.8715]
[1758149387914,1.48131422,4585.6,4585.1,0.0218]
[1758149388115,1.48131422,4585.6,4585.2,0.3135]
[1758149388116,0.3252,4585.5,4585.2,0.3135]
[1758149388319,0.7605,4585.3,4585.2,0.524]
[1758149388517,0.7605,4585.3,4585.2,0.7443]
[1758149388518,0.4353,4585.3,4585.2,0.7443]
[1758149388923,0.2197,4585.3,4585.2,3.9521]
[1758149389116,0.7689,4585.6,4585.5,0.8715]
[1758149389317,0.5449,4585.6,4585.5,0.8715]
[1758149389817,0.7689,4585.6,4585.5,0.8715]
[1758149390924,0.2197,4585.6,4585.5,0.8715]
[1758149391218,0.9845,4585.6,4585.5,0.524]
[1758149391417,0.9845,4585.6,4585.5,0.3135]
[1758149391721,0.9845,4585.6,4585.2,3.2078]
[1758149391926,0.7605,4585.4,4585.3,0.3135]
[1758149392122,0.3252,4585.3,4585.2,3.2078]
[1758149392324,0.7605,4585.3,4585.2,3.5213]
[1758149392926,0.7605,4585.3,4585.2,3.7318]
[1758149393622,0.7605,4585.3,4585.2,3.9521]
[1758149395223,0.4353,4585.3,4585.2,3.9521]
[1758149395817,0.4437,4585.3,4585.2,3.9521]
[1758149397038,0.3252,4586.1,4585.2,3.6386]
[1758149397222,0.97857,4586.1,4586.0,0.524]
[1758149397527,1.25649171,4586.1,4586.0,0.524]
[1758149397823,1.48049171,4586.1,4586.0,0.8715]
[1758149398026,0.49599171,4586.1,4586.0,0.8715]
[1758149398225,35.33,4586.5,4586.1,0.3164]
[1758149398424,35.554,4586.5,4586.4,0.4181]
[1758149398626,35.554,4586.5,4586.4,0.7345]
[1758149400221,36.287,4586.5,4586.4,0.5216]
[1758149400426,35.7707,4586.5,4586.4,0.7345]
[1758149400628,35.554,4586.5,4586.4,0.7345]
[1758149400828,35.7549,4586.5,4586.4,0.7345]
[1758149401030,36.287,4586.5,4586.4,0.7345]
[1758149401329,35.82739988,4586.5,4586.0,0.1282]
[1758149401532,35.5467,4586.5,4586.4,0.7345]
[1758149401724,35.554,4586.5,4586.4,0.7345]
[1758149403134,35.33,4586.5,4586.4,0.7345]
[1758149403327,35.554,4586.5,4586.4,0.7345]
[1758149403725,35.7707,4586.5,4586.4,0.7345]
[1758149404128,0.2167,4587.1,4587.0,0.8627]
[1758149404536,0.4407,4587.1,4587.0,0.8627]
[1758149404731,0.6489,4587.1,4587.0,0.8627]
[1758149404930,0.957,4587.1,4586.5,0.1282]
[1758149405535,0.957,4587.1,4586.6,0.3047]
[1758149405932,0.4238,4586.6,4586.5,0.3047]
[1758149406131,0.974,4586.6,4586.5,0.5286]
[1758149406326,0.6478,4586.6,4586.5,0.8805]
[1758149406537,0.224,4586.6,4586.5,0.8805]
[1758149406931,0.436,4586.6,4586.5,0.8805]
[1758149407340,0.974,4586.6,4586.5,0.7522]
[1758149409336,0.974,4586.6,4586.5,0.5286]
[1758149409534,0.6478,4586.6,4586.4,0.3047]
[1758149409734,0.75,4586.5,4586.4,0.3047]
[1758149410230,0.75,4586.5,4586.4,0.5286]
[1758149411229,0.75,4586.5,4586.4,0.3047]
[1758149411634,0.75,4586.5,4586.4,0.5286]
[1758149411836,0.75,4587.1,4587.0,0.5286]
[1758149412043,1.47158826,4587.1,4587.0,0.5286]
[1758149412443,1.47158826,4587.1,4587.0,0.6569]
[1758149412745,1.47158826,4587.1,4587.0,0.8805]
[1758149413041,0.70958826,4587.1,4587.0,0.8805]
[1758149413236,0.72158826,4587.1,4587.0,0.8805]
[1758149413437,0.224,4587.1,4587.0,0.8805]
[1758149413635,0.436,4587.1,4587.0,0.8805]
[1758149414342,0.212,4587.1,4587.0,0.8805]
[1758149414636,3.2078,4587.7,4587.0,0.8805]
[1758149414844,0.72146536,4587.6,4587.5,0.8805]
[1758149415442,3.2078,4587.7,4587.6,0.3047]
[1758149415742,4.14109494,4587.7,4587.6,0.7522]
[1758149416138,3.91709494,4587.7,4587.6,0.7522]
[1758149416343,4.14109494,4587.7,4587.6,0.7522]
[1758149416940,3.91709494,4587.7,4587.6,0.7522]
[1758149417142,4.14109494,4587.7,4587.6,0.7522]
[1758149417541,0.93329494,4587.7,4587.6,0.7522]
[1758149417943,1.47129494,4587.7,4587.6,0.7522]
[1758149418539,1.47129494,4587.7,4587.6,0.5286]
[1758149420448,0.72129494,4587.7,4587.6,0.7522]
[1758149420640,0.49729494,4587.7,4587.6,0.7522]
[1758149420841,0.72129494,4587.7,4587.6,0.7522]
[1758149421137,0.974,4587.7,4587.6,0.7522]
[1758149421341,1.47105645,4587.7,4587.6,0.7522]
[1758149421644,0.974,4587.7,4587.6,0.3047]
[1758149421842,1.47111086,4587.7,4587.6,0.5286]
[1758149422742,1.47111086,4587.7,4587.4,0.3264]
[1758149423047,1.14497708,4587.6,4587.5,0.8805]
[1758149423249,0.974,4587.6,4587.5,0.8805]
[1758149423448,1.47126247,4587.6,4587.5,0.8805]
[1758149424244,0.4238,4587.6,4587.5,0.8805]
[1758149424444,0.212,4587.6,4587.5,0.8805]
[1758149424647,0.93337401,4587.6,4587.5,0.8805]
[1758149424950,0.49737401,4587.6,4587.5,0.8805]
[1758149425249,0.72137401,4587.6,4587.5,0.8805]
[1758149425546,0.022,4588.2,4588.1,0.7522]
[1758149425850,0.662,4589.4,4589.3,0.7522]
[1758149426148,1.69734348,4589.4,4589.3,0.5286]
[1758149426447,1.17134348,4589.4,4589.3,0.7522]
[1758149427352,1.15878551,4589.4,4589.3,0.7522]
[1758149427650,0.8738,4589.4,4589.3,0.7522]
[1758149427949,0.45,4589.4,4589.3,4.7522]
[1758149428648,0.45,4589.4,4589.3,0.7522]
[1758149430343,0.662,4589.4,4589.3,0.7522]
[1758149430543,1.2,4589.4,4589.3,0.2239]
[1758149430749,1.0978,4589.4,4589.3,0.7522]
[1758149430948,1.424,4589.4,4589.3,0.7522]
[1758149431349,1.424,4589.4,4589.3,0.5286]
[1758149431553,0.4238,4589.1,4589.0,0.5286]
[1758149431751,0.75,4589.1,4589.0,0.5286]
[1758149432250,0.75,4589.1,4588.6,0.3047]
[1758149432553,0.75,4589.1,4588.5,0.8805]
[1758149432554,0.212,4588.6,4588.5,0.8805]
[1758149432757,0.224,4589.0,4588.5,0.8805]
[1758149432952,0.974,4589.0,4588.9,0.5286]
[1758149433557,0.212,4588.3,4588.2,0.7522]
[1758149433960,0.3262,4588.9,4588.2,0.4475]
[1758149434260,0.212,4588.4,4588.3,0.7522]
[1758149435854,0.7377,4588.4,4588.3,0.7522]
[1758149436363,0.4238,4588.4,4588.3,0.7522]
[1758149438357,0.212,4588.4,4588.3,0.7522]
[1758149438856,0.212,4588.4,4588.1,0.0217]
[1758149438857,0.7352,4588.4,4588.1,0.0217]
[1758149439164,0.7416,4588.3,4588.2,0.5263]
[1758149440156,0.7416,4588.3,4588.2,0.7467]
[1758149440462,0.4277,4588.3,4588.2,0.7467]
[1758149441060,0.6517,4588.3,4588.2,0.7467]
[1758149441761,0.4235,4589.0,4588.2,0.4208]
[1758149441959,0.71587135,4588.9,4588.8,0.7467]
[1758149442155,0.93987135,4588.9,4588.8,0.7467]
[1758149443458,0.25,4590.0,4589.0,0.1227]
[1758149443656,0.425,4590.0,4589.3,0.7467]
[1758149444060,0.224,4589.7,4589.3,7.9545]
[1758149444257,0.25,4590.0,4589.9,0.7467]
[1758149446167,0.9666,4590.9,4590.8,0.2004]
[1758149446365,0.9666,4590.9,4590.3,0.3259]
[1758149446366,0.1234,4590.5,4590.3,0.3259]
[1758149446566,0.5389,4590.5,4590.0,0.5435]
[1758149446861,0.3139,4590.4,4590.0,0.5435]
[1758149447057,0.5323,4590.4,4590.3,0.4208]
[1758149447260,0.7416,4590.4,4590.3,0.7467]
[1758149447459,0.3139,4590.3,4590.0,0.3259]
[1758149447661,0.7416,4590.1,4590.0,0.5263]
[1758149448267,0.7416,4590.1,4590.0,0.2004]
[1758149448470,0.7416,4590.1,4590.0,0.7467]
[1758149448670,0.5323,4590.1,4590.0,0.7467]
[1758149448961,0.7416,4590.1,4590.0,0.7467]
[1758149450177,1.46380442,4590.1,4590.0,0.7467]
[1758149450374,1.46380442,4590.1,4589.6,0.3259]
[1758149450572,0.7416,4589.7,4589.6,0.7467]
[1758149452182,0.7416,4589.7,4589.2,3.2078]
[1758149452183,0.7416,4589.7,4589.3,0.3259]
[1758149452379,0.7416,4589.4,4589.3,0.7467]
[1758149452973,0.4277,4589.4,4589.3,0.7467]
[1758149453176,0.2184,4589.4,4589.3,0.7467]
[1758149453382,0.5323,4589.4,4589.3,0.7467]
[1758149453773,0.2184,4589.4,4589.3,0.7467]
[1758149455085,0.7416,4589.4,4589.3,0.4208]
[1758149455277,0.7416,4589.4,4588.8,0.3259]
[1758149455278,1.23973987,4589.4,4588.8,0.3259]
[1758149455477,0.7416,4589.4,4589.3,0.2004]
[1758149455678,1.23976021,4589.4,4589.1,0.3259]
[1758149455879,0.7416,4589.4,4589.1,0.3259]
[1758149456189,0.4277,4589.4,4589.1,0.3259]
[1758149456389,0.4277,4589.4,4589.3,0.2004]
[1758149456784,0.7416,4589.4,4589.3,0.2004]
[1758149458788,0.7416,4589.4,4589.3,0.5215]
[1758149460189,0.7416,4589.4,4589.3,0.2004]
[1758149460385,0.4184,4589.1,4589.0,0.1743]
[1758149460587,0.7305,4589.1,4589.0,0.3774]
[1758149460788,0.9545,4589.1,4589.0,0.1743]
[1758149461491,1.45595013,4589.1,4589.0,0.1743]
[1758149464694,1.65386242,4589.1,4589.0,0.1743]
[1758149465195,0.7305,4588.9,4588.8,0.0217]
[1758149465397,4.43975013,4588.9,4588.8,0.0217]
[1758149471290,4.43975013,4588.9,4588.8,0.7309]
[1758149471291,0.50145013,4588.9,4588.8,0.7309]
[1758149471504,0.224,4589.0,4588.9,0.3087]
[1758149471799,0.324,4589.2,4588.9,0.7092]
[1758149472101,0.224,4589.1,4589.0,0.8401]
[1758149472302,0.324,4589.2,4589.0,0.5314]
[1758149472502,0.224,4589.1,4589.0,0.5314]
[1758149472802,0.324,4589.2,4589.0,0.5314]
[1758149472995,0.224,4589.1,4589.0,0.8401]
[1758149473596,0.5232,4589.1,4589.0,0.8401]
[1758149473801,0.9649,4589.1,4589.0,0.8401]
[1758149474605,0.4232,4589.1,4589.0,0.8401]
[1758149477203,0.324,4589.4,4589.3,0.4005]
[1758149477403,0.548,4589.4,4589.3,0.7092]
[1758149477602,0.548,4589.4,4589.0,0.52293]
[1758149477603,0.7409,4589.9,4589.8,0.4005]
[1758149477809,0.9649,4589.9,4589.8,0.7092]
[1758149478102,0.1992,4589.9,4589.8,0.7092]
[1758149478299,3.3312,4590.5,4590.2,0.4005]
[1758149478300,0.5232,4590.3,4590.2,0.4005]
[1758149478499,1.24895596,4590.3,4590.2,0.7092]
[1758149479105,1.24265596,4590.3,4590.2,0.7092]
[1758149479305,1.46665596,4590.3,4590.2,0.2003]
[1758149479507,1.46665596,4590.3,4589.9,0.3087]
[1758149479702,1.24265596,4590.2,4590.1,0.2003]
[1758149479896,1.24265596,4590.2,4589.5,3.3387]
[1758149480103,1.24265596,4590.1,4590.0,0.7092]
[1758149480302,1.46665596,4590.1,4590.0,0.7092]
[1758149482509,1.24265596,4590.1,4590.0,0.7092]
[1758149482804,1.46665596,4590.1,4590.0,0.8401]
[1758149483008,0.70095596,4590.1,4590.0,0.8401]
[1758149483209,0.92495596,4590.1,4590.0,0.8401]
[1758149484110,0.4232,4590.1,4590.0,0.8401]
[1758149484300,0.7472,4590.1,4590.0,0.8401]
[1758149485104,0.1234,4590.5,4590.0,0.8401]
[1758149485105,0.1992,4590.5,4590.4,0.4005]
[1758149485304,1.46636757,4590.5,4590.4,0.7092]
[1758149486206,0.9649,4590.5,4590.4,0.7092]
[1758149489313,0.7409,4590.5,4590.4,0.7092]
[1758149489512,0.9649,4590.5,4590.4,0.7092]
[1758149491611,0.7409,4590.5,4590.4,0.7092]
[1758149491815,0.9649,4590.5,4590.4,0.7092]
[1758149492314,0.7409,4590.5,4590.4,0.7092]
[1758149492617,0.9649,4590.5,4590.4,0.7092]
[1758149493210,0.7409,4590.1,4590.0,3.2078]
[1758149493417,0.8694,4590.0,4589.9,0.0217]
[1758149494217,0.8694,4590.0,4589.9,0.222]
[1758149495019,0.8694,4590.0,4589.9,0.0217]
[1758149495624,0.7409,4590.0,4589.9,0.732]
[1758149495818,0.9649,4590.0,4589.9,3.9398]
[1758149496520,0.7183,4590.0,4589.9,3.9398]
[1758149498017,0.4943,4590.0,4589.9,3.9398]
[1758149498222,0.7183,4590.0,4589.9,3.9181]
[1758149498419,0.1285,4590.5,4590.0,0.1192]
[1758149498628,0.5082,4590.8,4590.7,0.7181]
[1758149498924,1.23364919,4590.8,4590.7,0.7181]
[1758149499115,1.43944919,4590.8,4590.7,0.7181]
[1758149499318,1.6277806,4590.8,4590.7,0.7181]
[1758149499519,1.43944919,4590.8,4590.7,0.7181]
[1758149500822,1.43944919,4590.8,4590.5,0.0217]
[1758149501022,0.50144919,4590.7,4590.5,0.0217]
[1758149501229,0.714,4590.6,4590.5,0.2298]
[1758149501425,1.21544919,4590.6,4590.5,0.5334]
[1758149501724,1.21544919,4590.6,4590.5,0.7398]
[1758149501925,1.43944919,4590.6,4590.5,0.7398]
[1758149502727,4.64724919,4590.6,4590.5,0.0217]
[1758149503328,4.83559687,4590.6,4590.5,0.0217]
[1758149511136,4.64724919,4590.6,4590.5,0.0217]
[1758149511337,4.83946234,4590.6,4590.5,0.0217]
[1758149512635,4.61546234,4590.6,4590.5,0.7398]
[1758149512833,0.91766234,4590.6,4590.5,0.859]
[1758149513338,1.43944919,4590.6,4590.5,0.7398]
[1758149513936,1.14434919,4590.6,4590.5,0.859]
[1758149514133,0.50144919,4590.6,4590.5,0.859]
[1758149514339,0.72544919,4590.6,4590.5,0.859]
[1758149515527,0.93854919,4590.6,4590.5,0.859]
[1758149516839,0.93854919,4590.6,4590.5,4.0668]
[1758149517041,0.50144919,4590.6,4590.5,8.0668]
[1758149517242,0.224,4590.7,4590.6,0.7181]
[1758149517439,1.44058909,4590.7,4590.6,0.7181]
[1758149517835,0.93968909,4590.7,4590.6,0.7181]
[1758149518039,1.23538909,4590.7,4590.6,0.7181]
[1758149518237,1.42868909,4590.7,4590.6,0.2081]
[1758149518443,1.42868909,4590.7,4590.6,0.7219]
[1758149519033,0.2957,4590.6,4590.5,0.0217]
[1758149519237,4.59550598,4590.6,4590.5,0.0217]
[1758149523841,4.81950598,4590.6,4590.5,0.0217]
[1758149524144,4.81950598,4590.6,4590.5,0.7457]
[1758149524741,4.81950598,4590.6,4590.5,0.2102]
[1758149525840,0.2991,4590.4,4590.1,0.207]
[1758149526046,1.43928909,4590.3,4590.2,0.7235]
[1758149526644,1.14018909,4590.3,4590.2,0.7235]
[1758149526842,0.50258909,4590.3,4590.2,0.7235]
[1758149527044,0.2991,4591.0,4590.2,4.79973]
[1758149527248,0.5085,4591.0,4590.9,0.7235]
[1758149527444,1.42797341,4591.0,4590.9,0.7235]
[1758149527745,1.40817341,4591.0,4590.9,0.7235]
[1758149527946,1.63217341,4591.0,4590.9,0.7235]
[1758149528350,1.40817341,4591.0,4590.9,0.7235]
[1758149528542,1.14008384,4591.0,4590.9,0.7235]
[1758149529341,0.91608384,4591.0,4590.9,0.7235]
[1758149529548,1.14008384,4591.0,4590.9,0.7235]
[1758149529747,0.93588384,4591.0,4590.9,0.7235]
[1758149530146,0.50248384,4591.0,4590.9,4.7235]
[1758149530345,0.7325,4591.1,4591.0,0.845]
[1758149530542,0.9367,4591.1,4591.0,0.7235]
[1758149531147,0.4136,4590.8,4590.7,0.5444]
[1758149531343,0.7127,4590.8,4590.7,0.5444]
[1758149531649,0.7127,4590.8,4590.7,0.7452]
[1758149532051,3.2078,4591.7,4591.3,0.7235]
[1758149532052,0.5085,4591.4,4591.3,0.7235]
[1758149532644,0.7127,4591.4,4590.8,0.3157]
[1758149532845,0.7127,4590.9,4590.8,0.5227]
[1758149533050,0.9367,4590.9,4590.8,0.7235]
[1758149534058,0.4334,4590.9,4590.8,0.7235]
[1758149534251,0.224,4590.9,4590.8,0.7235]
[1758149534456,0.7325,4590.9,4590.8,0.7235]
[1758149534748,0.5085,4591.6,4591.5,0.207]
[1758149534957,1.13776508,4591.6,4591.5,0.5227]
[1758149535346,0.9367,4591.6,4591.5,0.7235]
[1758149535550,0.7127,4591.6,4591.5,0.7235]
[1758149535751,0.9367,4591.6,4591.2,3.2078]
[1758149536051,0.7127,4591.3,4591.2,0.207]
[1758149536258,0.7127,4591.3,4591.2,0.7235]
[1758149536559,0.9367,4591.3,4591.2,0.7235]
[1758149536754,0.2991,4591.9,4591.3,0.3157]
[1758149536956,0.5085,4591.9,4591.8,0.4078]
[1758149537257,0.6344321,4591.9,4591.8,0.7235]
[1758149537448,0.7325,4591.9,4591.8,0.7235]
[1758149537650,0.2094,4591.9,4591.8,0.7235]
[1758149537951,0.4334,4591.9,4591.8,0.7235]
[1758149538256,0.6376,4591.9,4591.8,0.7235]
[1758149538557,38.5078,4592.7,4591.8,0.7235]
[1758149538558,0.421,4592.5,4591.9,0.3157]
[1758149538752,0.8346,4592.5,4592.4,0.207]
[1758149538963,0.5085,4592.5,4592.4,0.7235]
[1758149539460,0.7127,4592.5,4592.4,0.7235]
[1758149539955,0.5355,4592.0,4591.9,0.5227]
[1758149540153,0.7127,4592.0,4591.9,0.7235]
[1758149540662,0.8346,4592.0,4591.9,0.5227]
[1758149541260,0.7127,4591.3,4591.2,0.207]
[1758149541460,0.8346,4591.0,4590.9,0.207]
[1758149541659,0.5085,4590.9,4590.8,0.3157]
[1758149541860,3.3297,4591.5,4590.8,0.3157]
[1758149541861,0.2991,4591.4,4590.9,0.3157]
[1758149542059,0.4324,4591.0,4590.9,0.7235]
[1758149542570,1.0576,4591.0,4590.6,3.2078]
[1758149542860,1.0576,4591.0,4590.6,3.5235]
[1758149543057,0.1219,4591.5,4590.9,0.7235]
[1758149543367,0.1219,4591.5,4590.5,0.1215]
[1758149543368,0.9357,4591.5,4591.4,0.7235]
[1758149543657,0.2094,4591.5,4591.4,0.7235]
[1758149543861,35.293,4592.3,4591.6,0.4078]
[1758149544156,0.2094,4591.8,4591.7,0.4078]
[1758149544357,0.9357,4591.8,4591.7,0.207]
[1758149544558,0.9357,4591.8,4591.7,0.5227]
[1758149544756,0.9357,4591.8,4591.4,0.4899]
[1758149544953,0.4136,4591.5,4591.4,0.6969]
[1758149545260,0.7127,4591.5,4591.4,0.8977]
[1758149545855,0.2094,4591.5,4591.4,0.8977]
[1758149546057,0.6366,4592.0,4591.9,0.7235]
[1758149546361,0.6366,4592.0,4591.9,3.9313]
[1758149546561,0.9357,4592.0,4591.9,0.7235]
[1758149547552,35.5921,4592.3,4592.0,0.1215]
[1758149547862,35.5921,4592.3,4592.0,0.845]
[1758149547863,0.2094,4592.1,4592.0,0.845]
[1758149548253,0.7127,4592.1,4592.0,0.7235]
[1758149548762,0.9357,4592.1,4592.0,0.7235]
[1758149549460,0.9357,4592.1,4592.0,0.845]
[1758149549660,35.293,4592.3,4592.0,0.845]
[1758149549862,35.293,4592.3,4592.1,0.7235]
[1758149550163,0.223,4592.2,4592.1,0.4078]
[1758149550456,0.7127,4591.6,4591.5,0.5293]
[1758149550762,0.223,4592.0,4591.8,0.3157]
[1758149550965,0.223,4592.0,4591.9,0.7235]
[1758149550966,0.4324,4592.0,4591.9,0.7235]
[1758149551156,0.223,4592.1,4592.0,0.4372]
[1758149551462,35.293,4592.3,4592.2,0.7235]
[1758149551668,35.516,4592.3,4592.2,0.7235]
[1758149551855,0.223,4592.3,4592.2,0.4078]
[1758149552062,0.4324,4592.3,4592.2,0.7235]
[1758149552455,0.4324,4592.3,4592.0,3.3293]
[1758149552456,0.2991,4592.2,4592.0,3.2078]
[1758149552764,0.7127,4591.6,4591.5,3.2078]
[1758149552953,0.7127,4591.6,4591.5,3.7305]
[1758149553162,0.7127,4591.6,4591.5,3.9313]
[1758149553662,0.7127,4591.6,4591.5,4.0528]
[1758149553966,0.223,4591.7,4591.6,0.7235]
[1758149554360,0.7315,4591.7,4591.6,0.7235]
[1758149554960,0.7315,4591.7,4591.6,0.207]
[1758149554961,0.9357,4591.7,4591.6,0.207]
[1758149555166,0.2991,4591.6,4591.5,3.5235]
[1758149555369,0.7127,4591.6,4591.5,3.7305]
[1758149555665,0.7127,4591.6,4591.5,3.9313]
[1758149556265,0.7127,4591.6,4591.5,4.0489]
[1758149556467,0.223,4591.7,4591.6,0.6895]
[1758149556868,0.3031,4592.4,4591.7,0.2875]
[1758149557163,0.5075,4591.8,4591.7,0.402]
[1758149557357,0.5075,4591.8,4591.7,0.6895]
[1758149558261,0.2044,4591.8,4591.7,0.6895]
[1758149558662,3.3297,4592.5,4591.7,0.402]
[1758149558868,0.72079865,4592.4,4592.3,0.402]
[1758149559167,1.22829865,4592.4,4592.3,0.6895]
[1758149559367,1.00529865,4592.4,4592.3,0.6895]
[1758149559558,1.22829865,4592.4,4592.3,0.6895]
[1758149559763,1.43599865,4592.4,4592.3,0.6895]
[1758149560160,0.9382,4592.4,4592.3,0.6895]
[1758149561765,0.7152,4592.4,4592.3,0.6895]
[1758149562164,0.9382,4592.4,4592.3,0.6895]
[1758149562865,0.7152,4592.4,4592.3,0.6895]
[1758149563473,0.2044,4592.4,4592.3,0.6895]
[1758149563670,0.5075,4592.4,4592.3,0.6895]
[1758149563874,0.4121,4592.9,4592.8,0.402]
[1758149564063,1.21299679,4592.9,4592.8,3.8973]
[1758149564466,1.43599679,4592.9,4592.8,3.8973]